bitfinex-derivatives/quotes_BNBF0:USTF0_20250316
["timestamp","ask_amount","ask_price","bid_price","bid_amount"]
[1742131614679,0.33291718,600.75,600.05,2.62614369]
[1742131614979,0.33291718,600.75,600.06,1.4241651]
[1742131615175,0.33291718,600.75,600.07,1.4241651]
[1742131615376,0.33291718,600.75,600.08,1.4241651]
[1742131615576,0.33291718,600.75,600.09,2.62614369]
[1742131615779,0.33291718,600.75,600.1,1.4241651]
[1742131615975,0.33291718,600.75,600.11,1.4241651]
[1742131616175,2.5233244,601.6,600.12,1.7301882]
[1742131616376,0.33245786,601.58,600.13,1.729447]
[1742131616580,0.33245786,601.58,600.14,1.729447]
[1742131616880,2.5233244,601.5,600.15,1.729447]
[1742131617080,2.5233244,601.5,600.03,1.224]
[1742131617081,0.33251313,601.48,600.16,2.93142559]
[1742131617279,0.33251313,601.48,600.17,1.729447]
[1742131617479,0.33251313,601.48,600.18,2.93142559]
[1742131617678,0.33251313,601.48,600.19,1.729447]
[1742131617880,0.33251313,601.48,600.2,1.4234239]
[1742131618074,0.33251313,601.48,600.21,2.62540249]
[1742131618277,0.33251313,601.48,600.22,1.4234239]
[1742131618478,2.5233244,601.32,600.23,1.4234239]
[1742131618677,0.33261267,601.3,600.24,2.24123893]
[1742131618882,0.33261267,601.3,600.25,1.03926034]
[1742131619181,0.33261267,601.3,600.26,1.03909837]
[1742131619377,0.33261267,601.3,600.03,1.224]
[1742131619583,0.33261267,601.3,600.04,1.72959244]
[1742131619783,0.33261267,601.3,600.05,1.72959244]
[1742131619978,0.33261267,601.3,600.06,1.72959244]
[1742131620181,0.33261267,601.3,600.07,1.72959244]
[1742131620382,0.33261267,601.3,600.08,1.72959244]
[1742131620582,0.33261267,601.3,600.09,1.72959244]
[1742131620785,0.33261267,601.3,600.1,2.93129307]
[1742131621083,0.33261267,601.3,600.11,1.72959244]
[1742131621385,0.33261267,601.3,600.12,1.72959244]
[1742131621583,0.33261267,601.3,600.13,2.93129307]
[1742131621785,0.33261267,601.3,600.14,1.72924]
[1742131622080,0.33261267,601.3,600.15,2.93094063]
[1742131622284,0.33261267,601.3,600.16,1.72924]
[1742131622480,0.33261267,601.3,600.17,2.93094063]
[1742131622686,0.33261267,601.3,600.18,1.72924]
[1742131622981,0.33261267,601.3,600.19,2.62492647]
[1742131623185,0.33261267,601.3,600.2,1.42322584]
[1742131623379,0.33261267,601.3,600.21,1.42322584]
[1742131623579,0.33261267,601.3,600.22,2.62492647]
[1742131623783,0.33261267,601.3,600.23,1.03929806]
[1742131623984,0.33261267,601.3,600.24,1.42306712]
[1742131624185,0.33261267,601.3,600.25,1.42306712]
[1742131624387,0.33261267,601.3,600.26,2.62476775]
[1742131624588,0.33261267,601.3,600.27,1.42306712]
[1742131624784,0.33261267,601.3,600.28,1.72894944]
[1742131624986,0.33261267,601.3,600.29,1.72894944]
[1742131625187,0.33261267,601.3,600.3,1.72894944]
[1742131625387,0.33261267,601.3,600.31,1.72894944]
[1742131625590,0.33261267,601.3,600.32,2.93065007]
[1742131625888,0.33261267,601.3,600.33,2.92936246]
[1742131626088,0.33261267,601.3,600.34,1.72766183]
[1742131626384,0.33261267,601.3,600.35,1.72766183]
[1742131626588,0.33261267,601.3,600.36,1.42177951]
[1742131626889,0.33261267,601.3,600.37,1.72764195]
[1742131627085,0.33261267,601.3,600.38,1.72764195]
[1742131627286,0.33261267,601.3,600.39,1.72764195]
[1742131627490,0.33261267,601.3,600.4,2.62348014]
[1742131627790,0.33261267,601.3,600.41,1.42177951]
[1742131627990,0.33261267,601.3,600.42,1.42177951]
[1742131628189,0.33261267,601.3,600.43,1.42177951]
[1742131628391,0.33261267,601.3,600.44,1.42177951]
[1742131628590,0.33261267,601.3,600.45,2.62348014]
[1742131628790,0.33261267,601.3,600.46,1.42177951]
[1742131628987,0.33261267,601.3,600.47,2.24001306]
[1742131629291,0.33261267,601.3,600.48,1.03831243]
[1742131629486,0.33261267,601.3,600.48,2.24001306]
[1742131629690,0.33261267,601.3,600.48,1.20170063]
[1742131630091,0.33261267,601.3,600.01,0.28965724]
[1742131630392,0.33261267,601.3,600.49,1.198]
[1742131631491,0.696,601.29,600.49,1.198]
[1742131631694,0.33262373,601.28,600.49,1.198]
[1742131643499,0.33262373,601.28,600.5,1.03828004]
[1742131643700,0.33262373,601.28,600.49,1.198]
[1742131643901,0.33262373,601.28,600.5,1.03807688]
[1742131644097,0.33262373,601.28,600.51,1.20031434]
[1742131644697,0.33262373,601.28,600.52,1.03793525]
[1742131644902,0.33262373,601.28,600.53,1.03793957]
[1742131645102,0.33262373,601.28,600.54,1.03776847]
[1742131645403,0.33262373,601.28,600.55,2.62063877]
[1742131645604,0.33262373,601.28,600.56,1.03776847]
[1742131645905,0.33262373,601.28,600.57,1.03776847]
[1742131646104,0.33262373,601.28,600.55,1.1996797]
[1742131646497,0.33262373,601.28,600.56,2.23706966]
[1742131646703,0.33262373,601.28,600.57,1.03738996]
[1742131646901,0.33262373,601.28,600.58,1.03738996]
[1742131647098,0.33262373,601.28,600.56,1.1996797]
[1742131647303,0.33262373,601.28,600.49,1.198]
[1742131647502,0.33262373,601.28,600.5,1.42012331]
[1742131647704,0.33262373,601.28,600.51,1.42012331]
[1742131648005,0.33262373,601.28,600.52,1.42012331]
[1742131648208,0.33262373,601.28,600.53,1.42012331]
[1742131648405,0.33262373,601.28,600.54,1.42012331]
[1742131648605,0.33262373,601.28,600.55,1.42012331]
[1742131648799,0.33262373,601.28,600.56,1.42012331]
[1742131648999,0.33262373,601.28,600.57,1.42012331]
[1742131649203,0.33262373,601.28,600.58,1.03714212]
[1742131649405,0.33262373,601.28,600.59,2.23610694]
[1742131649606,0.33262373,601.28,600.6,1.03605862]
[1742131649900,0.33262373,601.28,600.49,1.198]
[1742131650106,0.33262373,601.28,600.5,1.41916808]
[1742131650303,0.33262373,601.28,600.51,1.41916808]
[1742131650501,0.33262373,601.28,600.52,1.41916808]
[1742131650709,0.33262373,601.28,600.53,2.61739125]
[1742131650905,0.33262373,601.28,600.54,1.03645942]
[1742131651209,0.33262373,601.28,600.55,1.03626994]
[1742131651509,0.33262373,601.28,600.53,1.19822317]
[1742131651706,0.33262373,601.28,600.54,1.03672539]
[1742131651913,0.33262373,601.28,600.49,1.198]
[1742131652210,0.33262373,601.28,600.5,1.03679293]
[1742131652406,0.33262373,601.28,600.51,1.03679293]
[1742131652609,0.33262373,601.28,600.04,0.28966929]
[1742131652810,0.33262373,601.28,600.05,1.7257019]
[1742131653005,0.33262373,601.28,600.06,1.7257019]
[1742131653306,0.33262373,601.28,600.07,2.9245547]
[1742131653507,0.33262373,601.28,600.08,1.7257019]
[1742131653711,0.33262373,601.28,600.09,1.7257019]
[1742131653906,0.33262373,601.28,600.1,1.7257019]
[1742131654111,0.33262373,601.28,600.11,1.7257019]
[1742131654313,0.33262373,601.28,600.12,1.7257019]
[1742131654511,0.33262373,601.28,600.13,1.7257019]
[1742131654713,0.33262373,601.28,600.14,1.7257019]
[1742131654914,0.33262373,601.28,600.15,1.7257019]
[1742131655112,0.33262373,601.28,600.16,1.7257019]
[1742131655315,0.33262373,601.28,600.17,1.7257019]
[1742131655514,0.33262373,601.28,600.18,2.61870419]
[1742131655716,0.33262373,601.28,600.19,1.7257019]
[1742131655917,0.33262373,601.28,600.2,1.7257019]
[1742131656117,0.33262373,601.28,600.21,1.7257019]
[1742131656312,0.33262373,601.28,600.22,1.72549664]
[1742131656617,0.33262373,601.28,600.23,2.92434944]
[1742131656817,0.33262373,601.28,600.24,1.72549664]
[1742131657013,0.33262373,601.28,600.25,1.72549664]
[1742131657215,0.33262373,601.28,600.26,2.92434944]
[1742131657415,0.33262373,601.28,600.27,1.41964613]
[1742131657617,0.33262373,601.28,600.28,2.92433159]
[1742131657913,0.33262373,601.28,600.29,2.92433159]
[1742131658119,0.33262373,601.28,600.3,1.72547879]
[1742131658320,0.33262373,601.28,600.31,1.72556857]
[1742131658519,0.33262373,601.28,600.32,1.72556857]
[1742131658819,0.33262373,601.28,600.33,1.72557905]
[1742131659020,0.33262373,601.28,600.34,0.30583266]
[1742131659222,0.33262373,601.28,600.35,0.38294545]
[1742131659522,0.33262373,601.28,600.36,1.3426336]
[1742131659722,0.33262373,601.28,600.37,2.92443185]
[1742131659924,0.33262373,601.28,600.38,1.72557905]
[1742131660126,0.33262373,601.28,600.39,1.41974639]
[1742131660419,0.33262373,601.28,600.4,1.72558262]
[1742131660622,0.33262373,601.28,600.41,1.72558262]
[1742131660822,0.33262373,601.28,600.42,1.72553801]
[1742131661022,0.33262373,601.28,600.43,1.41970178]
[1742131661223,0.33262373,601.28,600.44,1.41970178]
[1742131661523,0.33262373,601.28,600.45,1.41970178]
[1742131661717,0.33262373,601.28,600.46,1.41970178]
[1742131661918,0.33262373,601.28,600.47,1.41970178]
[1742131662122,0.33262373,601.28,600.48,1.41970178]
[1742131662317,0.33262373,601.28,600.49,1.41970178]
[1742131662519,0.33262373,601.28,600.5,1.03683231]
[1742131662719,0.33262373,601.28,600.49,1.1988528]
[1742131662924,0.33262373,601.28,600.5,2.23533213]
[1742131663122,0.33262373,601.28,600.51,1.03647933]
[1742131663320,0.33262373,601.28,600.5,1.1988528]
[1742131663626,0.33262373,601.28,600.51,1.03651989]
[1742131663820,0.33262373,601.28,600.14,1.182]
[1742131664028,0.695,601.27,600.15,2.92371309]
[1742131664325,0.3326348,601.26,600.16,1.72527686]
[1742131664526,0.3326348,601.26,600.17,1.72527686]
[1742131664720,0.3326348,601.26,600.18,1.72527686]
[1742131664924,0.3326348,601.26,600.19,1.72560129]
[1742131665123,0.3326348,601.26,600.2,2.92403752]
[1742131665319,0.3326348,601.26,600.21,1.72560129]
[1742131665528,0.3326348,601.26,600.22,1.72560129]
[1742131665722,0.3326348,601.26,600.23,1.41974798]
[1742131665927,0.3326348,601.26,600.24,1.41974798]
[1742131666128,0.3326348,601.26,600.25,1.41974798]
[1742131666429,0.3326348,601.26,600.26,1.72562809]
[1742131666634,0.3326348,601.26,600.27,2.92406432]
[1742131666826,0.3326348,601.26,600.28,1.72562809]
[1742131667025,0.3326348,601.26,600.29,1.72562809]
[1742131667227,0.3326348,601.26,600.3,2.92406432]
[1742131667429,0.3326348,601.26,600.31,1.72562809]
[1742131667629,0.3326348,601.26,600.32,1.72543333]
[1742131667829,0.3326348,601.26,600.33,1.72543333]
[1742131668027,0.3326348,601.26,600.34,1.72534477]
[1742131668229,0.3326348,601.26,600.35,2.923781]
[1742131668433,0.3326348,601.26,600.36,1.72534477]
[1742131668633,0.3326348,601.26,600.37,2.923781]
[1742131668934,0.3326348,601.26,600.38,1.72534477]
[1742131669129,0.3326348,601.26,600.39,1.72534477]
[1742131669330,0.3326348,601.26,600.4,1.72534477]
[1742131669532,0.3326348,601.26,600.41,1.72534477]
[1742131669834,0.3326348,601.26,600.42,1.72534477]
[1742131670029,0.3326348,601.26,600.43,2.923781]
[1742131670334,0.3326348,601.26,600.44,2.92376271]
[1742131670527,0.3326348,601.26,600.45,1.72532648]
[1742131670732,0.3326348,601.26,600.46,1.72532648]
[1742131671028,0.3326348,601.26,600.47,1.72532648]
[1742131671228,0.3326348,601.26,600.48,1.72532648]
[1742131671432,0.3326348,601.26,600.49,1.72532648]
[1742131671630,0.695,601.27,600.5,1.72532648]
[1742131671832,0.695,601.27,600.51,1.72532648]
[1742131672033,0.695,601.27,600.52,1.72532648]
[1742131672233,0.695,601.27,600.53,1.72373219]
[1742131672434,0.695,601.27,600.5,1.19843623]
[1742131672435,0.695,601.27,600.54,1.72373219]
[1742131672635,0.695,601.27,600.55,1.72373219]
[1742131672837,0.695,601.27,600.56,1.72373219]
[1742131673137,0.695,601.27,600.57,1.72373219]
[1742131673337,0.695,601.27,600.58,1.72373219]
[1742131673538,0.695,601.27,600.59,1.41795893]
[1742131673739,0.695,601.27,600.6,1.41795893]
[1742131673939,0.695,601.27,600.61,1.41795893]
[1742131674140,0.695,601.27,600.62,1.41795893]
[1742131674439,0.695,601.27,600.63,1.41795893]
[1742131674632,0.695,601.27,600.64,1.41795893]
[1742131674831,0.695,601.27,600.65,1.41795893]
[1742131675032,2.5233244,602.42,600.66,1.41795893]
[1742131675239,0.33200531,602.4,600.67,1.41795893]
[1742131675438,0.33200531,602.4,600.68,1.41795893]
[1742131675639,0.33200531,602.4,600.69,1.41795893]
[1742131675941,2.5233244,602.39,600.7,1.41795893]
[1742131676141,0.33202184,602.37,600.71,1.41795893]
[1742131676336,0.33202184,602.37,600.72,1.41795893]
[1742131676538,0.33202184,602.37,600.73,1.41795893]
[1742131676836,0.33202184,602.37,600.74,2.61639516]
[1742131677141,0.33202184,602.37,600.75,1.41795893]
[1742131677335,0.33202184,602.37,600.76,2.61639516]
[1742131677539,0.98346449,602.36,600.77,1.03514242]
[1742131677739,0.33203838,602.34,600.14,1.182]
[1742131677938,2.5233244,602.31,600.15,2.05613039]
[1742131678140,0.33211006,602.21,600.16,2.05612483]
[1742131678434,0.33211006,602.21,600.17,2.05611928]
[1742131678738,0.33211006,602.21,600.18,1.72288037]
[1742131678939,0.33211006,602.21,600.19,1.72284324]
[1742131679135,0.33211006,602.21,600.2,2.05606549]
[1742131679340,0.33211006,602.21,600.21,1.72284324]
[1742131679541,0.33211006,602.21,600.22,1.72284324]
[1742131679736,0.33211006,602.21,600.23,2.61354249]
[1742131679943,0.33211006,602.21,600.24,1.72283929]
[1742131680142,0.33211006,602.21,600.25,1.72288899]
[1742131680442,0.28955481,602.2,600.26,2.91936142]
[1742131680643,0.3321266,602.18,600.27,1.72288899]
[1742131680842,0.3321266,602.18,600.28,2.91955446]
[1742131681047,0.3321266,602.18,600.29,1.72308203]
[1742131681337,0.3321266,602.18,600.3,1.72307467]
[1742131681538,0.3321266,602.18,600.2,0.33322225]
[1742131681539,0.3321266,602.18,600.31,2.9195471]
[1742131681844,0.3321266,602.18,600.32,1.72307467]
[1742131682042,0.3321266,602.18,600.33,1.4173128]
[1742131682237,0.3321266,602.18,600.34,1.72307467]
[1742131682441,0.3321266,602.18,600.35,1.72309764]
[1742131682637,0.3321266,602.18,600.36,1.72309764]
[1742131682942,0.3321266,602.18,600.37,1.72309764]
[1742131683148,0.3321266,602.18,600.38,1.72309764]
[1742131683339,0.3321266,602.18,600.39,1.72309764]
[1742131683645,0.3321266,602.18,600.4,1.72309764]
[1742131683843,0.3321266,602.18,600.41,1.72309764]
[1742131684039,0.3321266,602.18,600.42,1.72309764]
[1742131684240,0.3321266,602.18,600.43,1.72309764]
[1742131684438,0.3321266,602.18,600.44,1.72264921]
[1742131684737,0.3321266,602.18,600.45,1.41688734]
[1742131684943,0.3321266,602.18,600.46,1.72260986]
[1742131685142,0.3321266,602.18,600.43,1.19647243]
[1742131685143,0.3321266,602.18,600.47,1.72260986]
[1742131685338,0.3321266,602.18,600.26,0.28953433]
[1742131685339,0.3321266,602.18,600.48,1.72260986]
[1742131685544,0.3321266,602.18,600.49,1.72260986]
[1742131685837,0.3321266,602.18,600.5,1.72260986]
[1742131686045,0.3321266,602.18,600.51,2.91908229]
[1742131686244,0.3321266,602.18,600.52,1.72260986]
[1742131686442,0.3321266,602.18,600.53,1.7218184]
[1742131686644,0.3321266,602.18,600.54,1.7218184]
[1742131686839,0.3321266,602.18,600.55,2.91829083]
[1742131687041,0.3321266,602.18,600.56,1.7218184]
[1742131687244,0.3321266,602.18,600.57,2.91829083]
[1742131687440,0.3321266,602.18,600.58,1.7218184]
[1742131687645,0.3321266,602.18,600.59,1.7218184]
[1742131687848,0.3321266,602.18,600.6,2.91829083]
[1742131688146,0.3321266,602.18,600.61,1.7218184]
[1742131688447,0.3321266,602.18,600.62,1.7218184]
[1742131688646,0.3321266,602.18,600.63,1.7218184]
[1742131688842,0.3321266,602.18,600.64,2.9166509]
[1742131689040,0.3321266,602.18,600.65,1.7218184]
[1742131689246,0.3321266,602.18,600.66,1.7218184]
[1742131689444,0.3321266,602.18,600.67,1.7218184]
[1742131689644,0.3321266,602.18,600.68,2.61092838]
[1742131689840,0.3321266,602.18,600.69,1.72170759]
[1742131690041,0.3321266,602.18,600.7,1.72170759]
[1742131690246,0.3321266,602.18,600.71,1.72170759]
[1742131690443,2.5233244,602.16,600.72,1.33963976]
[1742131690746,2.5233244,602.16,600.73,1.72071637]
[1742131690943,2.5233244,602.16,600.74,1.72071637]
[1742131691141,2.5233244,602.16,600.75,1.41510466]
[1742131691447,2.5233244,602.16,600.76,2.60993716]
[1742131691648,2.5233244,602.16,600.77,1.41510466]
[1742131691941,0.33214866,602.14,600.78,1.41510466]
[1742131692145,0.33214866,602.14,600.79,1.41510466]
[1742131692345,0.33214866,602.14,600.78,1.1948325]
[1742131692346,0.33214866,602.14,600.8,1.41510466]
[1742131692545,0.33214866,602.14,600.81,1.41491767]
[1742131692846,0.33214866,602.14,600.82,2.60975017]
[1742131693047,0.33214866,602.14,600.83,1.41491767]
[1742131693346,0.33214866,602.14,600.84,2.60975017]
[1742131693549,0.33214866,602.14,600.85,1.41491767]
[1742131693748,0.33214866,602.14,600.86,2.60975017]
[1742131694046,0.33214866,602.14,600.87,1.03402805]
[1742131694242,0.33214866,602.14,600.88,1.03402805]
[1742131694443,0.33214866,602.14,600.89,1.41248171]
[1742131694641,0.33214866,602.14,600.89,1.1948325]
[1742131695041,0.33214866,602.14,600.9,1.388]
[1742131696245,0.33214866,602.14,600.91,1.41212397]
[1742131696551,0.33214866,602.14,600.92,1.41212397]
[1742131696742,0.33214866,602.14,600.93,1.41212397]
[1742131697049,0.33214866,602.14,600.94,1.41212397]
[1742131697247,0.33214866,602.14,600.95,1.03138993]
[1742131697450,0.33214866,602.14,600.9,1.388]
[1742131697747,0.33214866,602.14,600.91,1.41160446]
[1742131697948,0.33214866,602.14,600.9,1.388]
[1742131698151,0.33214866,602.14,600.92,1.19186718]
[1742131698751,0.33214866,602.14,600.93,1.03097266]
[1742131698949,0.33214866,602.14,600.9,1.388]
[1742131699249,0.33214866,602.14,600.94,1.19187219]
[1742131699445,0.33214866,602.14,600.95,1.4115999]
[1742131699649,0.33214866,602.14,600.96,1.4115999]
[1742131699843,0.33214866,602.14,600.97,1.4115999]
[1742131700044,0.33214866,602.14,600.98,1.4115999]
[1742131700249,0.33214866,602.14,600.99,1.4115999]
[1742131700449,0.33214866,602.14,601.0,1.4115999]
[1742131700644,0.33214866,602.14,601.01,1.4115999]
[1742131700848,0.33214866,602.14,601.02,1.4115999]
[1742131701050,0.33214866,602.14,601.03,1.4115999]
[1742131701351,0.33214866,602.14,600.9,1.388]
[1742131701352,0.33214866,602.14,601.04,1.19187219]
[1742131702350,0.33214866,602.14,601.05,1.19187219]
[1742131702549,0.33214866,602.14,600.9,1.388]
[1742131702745,0.33214866,602.14,600.91,1.41009937]
[1742131702949,0.33214866,602.14,600.92,1.41009937]
[1742131703147,0.33214866,602.14,600.93,1.41011809]
[1742131703345,0.33214866,602.14,600.94,1.71561179]
[1742131703549,0.33214866,602.14,600.95,1.71561179]
[1742131703748,0.33214866,602.14,600.96,1.71561179]
[1742131704047,0.33214866,602.14,600.97,1.71561179]
[1742131704249,0.33214866,602.14,600.98,2.90622533]
[1742131704451,0.33214866,602.14,600.99,1.71561179]
[1742131704750,0.33214866,602.14,601.0,1.71561179]
[1742131704951,0.33214866,602.14,601.01,1.41011809]
[1742131705254,0.33214866,602.14,601.02,1.41011809]
[1742131705551,0.33214866,602.14,601.03,2.60073163]
[1742131705748,0.33214866,602.14,601.04,1.71559511]
[1742131705949,0.33214866,602.14,601.05,1.71559495]
[1742131706147,0.33214866,602.14,601.06,1.41011809]
[1742131706345,0.33214866,602.14,601.07,1.41011809]
[1742131706548,0.694,602.13,601.08,1.41011809]
[1742131706748,0.3321597,602.12,601.09,2.60073163]
[1742131706945,0.3321597,602.12,601.1,1.40763404]
[1742131707151,0.3321597,602.12,601.11,1.40763404]
[1742131707344,0.3321597,602.12,601.09,1.19061354]
[1742131707345,0.3321597,602.12,601.12,1.40763404]
[1742131707549,0.3321597,602.12,601.13,1.40763404]
[1742131707753,0.3321597,602.12,601.14,1.71307738]
[1742131707950,0.3321597,602.12,601.15,1.71307738]
[1742131708147,0.3321597,602.12,601.16,1.71307738]
[1742131708348,0.3321597,602.12,601.17,1.71307738]
[1742131708653,0.3321597,602.12,601.18,2.90369092]
[1742131708952,0.3321597,602.12,601.18,1.19061354]
[1742131709350,0.3321597,602.12,601.19,1.19061354]
[1742131709951,0.3321597,602.12,601.2,1.5690523]
[1742131710150,0.3321597,602.12,601.2,1.19061354]
[1742131710457,0.3321597,602.12,601.21,1.19061354]
[1742131710856,0.3321597,602.12,601.22,2.59423269]
[1742131711053,0.3321597,602.12,601.23,1.40366816]
[1742131711255,0.3321597,602.12,601.24,1.40350245]
[1742131711451,0.3321597,602.12,601.25,1.40348703]
[1742131711654,0.3321597,602.12,601.26,1.19061354]
[1742131711856,0.3321597,602.12,601.27,1.19061354]
[1742131712358,0.3321597,602.12,600.9,1.388]
[1742131712557,0.3321597,602.12,600.91,2.041554]
[1742131712758,0.3321597,602.12,600.92,3.22639785]
[1742131712961,0.3321597,602.12,600.93,1.70872546]
[1742131713155,0.3321597,602.12,600.94,1.70872546]
[1742131713354,0.3321597,602.12,600.95,1.70872546]
[1742131713662,0.3321597,602.12,600.96,1.40328737]
[1742131713962,0.3321597,602.12,600.97,1.40328737]
[1742131714264,0.3321597,602.12,600.98,2.58813676]
[1742131714459,0.3321597,602.12,600.99,1.40328737]
[1742131714661,0.3321597,602.12,601.0,2.58813676]
[1742131714858,0.3321597,602.12,601.01,1.40328737]
[1742131715060,0.3321597,602.12,601.02,1.40328737]
[1742131715260,0.3321597,602.12,601.03,2.58813676]
[1742131715464,0.3321597,602.12,601.04,1.40328737]
[1742131715763,0.3321597,602.12,601.05,2.58813676]
[1742131715963,0.3321597,602.12,601.06,1.40328737]
[1742131716163,0.3321597,602.12,601.07,1.40328737]
[1742131716463,0.3321597,602.12,601.08,1.40328737]
[1742131716658,0.3321597,602.12,601.09,1.40328737]
[1742131716860,0.3321597,602.12,601.1,1.40328737]
[1742131717061,0.3321597,602.12,601.11,0.37827829]
[1742131717261,0.3321597,602.12,601.09,1.18484939]
[1742131717262,0.3321597,602.12,601.12,1.40247863]
[1742131717462,0.3321597,602.12,601.13,1.40247863]
[1742131717763,0.3321597,602.12,601.14,1.40247863]
[1742131717958,0.3321597,602.12,601.15,2.58732802]
[1742131718263,0.3321597,602.12,601.16,1.40247863]
[1742131718457,0.3321597,602.12,601.17,2.58732802]
[1742131718658,0.3321597,602.12,601.18,1.40247863]
[1742131718859,0.3321597,602.12,601.19,1.40247863]
[1742131719058,0.3321597,602.12,601.2,1.40247863]
[1742131719262,0.3321597,602.12,601.21,0.3054374]
[1742131719463,0.3321597,602.12,601.22,0.37827829]
[1742131719862,0.3321597,602.12,601.17,1.18484939]
[1742131721264,0.3321597,602.12,601.18,0.37803166]
[1742131721564,0.3321597,602.12,601.17,1.18484939]
[1742131722659,0.3321597,602.12,601.18,1.40235017]
[1742131722859,0.3321597,602.12,601.19,1.40235017]
[1742131723168,0.3321597,602.12,601.2,1.40235017]
[1742131723364,0.3321597,602.12,601.21,1.40235017]
[1742131723564,0.3321597,602.12,601.22,0.37802832]
[1742131723765,0.3321597,602.12,601.23,1.56287771]
[1742131723965,0.3321597,602.12,601.23,1.18484939]
[1742131724265,0.3321597,602.12,601.24,1.18484939]
[1742131724662,0.3321597,602.12,601.25,1.18484939]
[1742131725064,0.3321597,602.12,600.92,0.332823]
[1742131725265,0.3321597,602.12,600.93,2.89354978]
[1742131725467,0.3321597,602.12,600.96,0.28929965]
[1742131725667,0.3321597,602.12,600.97,1.7086923]
[1742131725864,0.3321597,602.12,600.98,1.7086923]
[1742131726061,0.3321597,602.12,600.99,2.89354978]
[1742131726267,0.3321597,602.12,601.0,1.7086923]
[1742131726467,0.3321597,602.12,601.01,1.70892268]
[1742131726768,0.3321597,602.12,601.02,2.89378016]
[1742131727068,0.3321597,602.12,601.03,1.70892268]
[1742131727262,0.3321597,602.12,601.04,1.4034757]
[1742131727462,0.3321597,602.12,601.05,2.89377947]
[1742131727668,0.3321597,602.12,601.06,1.70892199]
[1742131727963,0.3321597,602.12,601.07,2.89377947]
[1742131728267,0.3321597,602.12,601.08,2.89377947]
[1742131728468,0.3321597,602.12,601.09,1.40470321]
[1742131728668,0.3321597,602.12,601.1,1.40470321]
[1742131728963,0.3321597,602.12,601.11,1.40461603]
[1742131729164,0.3321597,602.12,601.12,1.71012667]
[1742131729370,0.3321597,602.12,601.13,1.40461603]
[1742131729671,0.3321597,602.12,601.14,1.40461603]
[1742131729970,0.3321597,602.12,601.15,1.40461603]
[1742131730169,0.3321597,602.12,601.16,1.40461603]
[1742131730368,0.3321597,602.12,601.17,1.71006132]
[1742131730571,0.3321597,602.12,601.18,1.40461603]
[1742131730770,0.3321597,602.12,601.19,2.58947351]
[1742131730965,0.3321597,602.12,601.2,1.40461603]
[1742131731169,0.3321597,602.12,601.21,1.40461603]
[1742131731367,0.3321597,602.12,601.22,1.40461603]
[1742131731569,0.3321597,602.12,601.23,1.40461603]
[1742131731772,0.3321597,602.12,601.24,2.58947351]
[1742131731967,0.3321597,602.12,601.25,1.40461603]
[1742131732172,0.3321597,602.12,601.26,1.18485748]
[1742131733078,0.694,602.11,601.26,1.18485748]
[1742131733274,0.694,602.11,600.97,1.18485748]
[1742131733471,0.694,602.11,600.98,1.71126949]
[1742131733777,0.694,602.11,600.99,2.89612697]
[1742131733973,0.694,602.11,601.0,1.71126949]
[1742131734174,0.694,602.11,601.01,2.89612697]
[1742131734376,0.694,602.11,601.02,1.71126949]
[1742131734572,0.694,602.11,601.03,1.71126949]
[1742131734875,0.694,602.11,601.04,1.71126949]
[1742131735077,0.694,602.11,601.05,1.71126949]
[1742131735277,0.694,602.11,601.06,1.71126949]
[1742131735576,0.694,602.11,601.07,2.89612697]
[1742131735771,0.694,602.11,601.08,1.71126949]
[1742131735975,0.694,602.11,601.09,1.71126949]
[1742131736171,0.694,602.11,601.1,2.89612697]
[1742131736376,0.694,602.11,601.11,1.71126949]
[1742131736578,0.694,602.11,601.12,1.71135557]
[1742131736777,0.694,602.11,601.13,2.59077866]
[1742131736976,0.694,602.11,601.14,2.59077866]
[1742131737175,0.694,602.11,601.15,1.40592118]
[1742131737371,0.694,602.11,601.16,1.40592118]
[1742131737577,0.694,602.11,601.17,2.59077866]
[1742131737777,0.694,602.11,601.18,1.40592118]
[1742131737975,0.694,602.11,601.19,2.59152939]
[1742131738176,0.694,602.11,601.2,1.40667191]
[1742131738381,0.694,602.11,601.21,1.40667191]
[1742131738580,0.694,602.11,601.22,1.40667191]
[1742131738880,0.694,602.11,601.23,1.40667191]
[1742131739180,0.694,602.11,601.24,1.40667191]
[1742131739379,0.694,602.11,601.25,2.59152939]
[1742131739575,0.694,602.11,601.25,1.18485748]
[1742131739881,0.694,602.11,601.26,1.02850478]
[1742131740086,0.694,602.11,600.97,1.18485748]
[1742131740279,0.694,602.11,600.98,1.40802663]
[1742131740479,0.694,602.11,600.99,1.71346999]
[1742131740684,0.694,602.11,601.0,1.71346999]
[1742131740878,0.694,602.11,600.96,0.28930086]
[1742131740879,0.694,602.11,601.01,1.71346999]
[1742131741083,0.694,602.11,601.02,1.71346999]
[1742131741283,1.02616521,602.11,601.03,1.71346999]
[1742131741485,1.02616521,602.11,601.04,2.89832747]
[1742131741686,0.33217073,602.1,601.05,1.40802663]
[1742131741985,0.33217073,602.1,601.06,1.18485748]